Cogmind - Beta 11.1 @@@ ROGUE MODE // 2022.05.19 @ 11:49:21 Player: Infomantis Result: Destroyed by B-75 Beast with Magnetic Acceleration Cannon Performance ------------- Evolutions (4) 2000 Regions Visited (15) 3000 Robots Destroyed (192) 960 Value Destroyed (6138) 6138 Prototype IDs (34) 680 Alien Tech Used (0) 0 Bonus (1736) 1736 TOTAL SCORE: 14514 Bonus ------- High Alert Combat Kills 158 Entered Garrisons 400 Used RIF Installer 1000 Aligned with FarCom 300 Friendly Fire -122 Cogmind --------- Core Integrity 0/850 Matter 300/300 Energy 100/100 System Corruption 1% Temperature Cool (0) Movement Core (50) Location -6/Extension Parts ------- > --- POWER (2) -------- (None) > --- PROPULSION (4) --- (None) > --- UTILITY (7) ------ System Shield > --- WEAPON (2) ------- (None) > --- INVENTORY (5) ---- Xenon Bombardment Thruster PSU Rigger Flak Gun Improved Heavy Machine Gun Powered Hammer Peak State ------------ > --- POWER ------------ Light Angular Momentum Engine Light Angular Momentum Engine > --- PROPULSION ------- Carbon-fiber Leg Carbon-fiber Leg Armored Huge Wheel > --- UTILITY ---------- Improved Heat Sink Advanced Heat Sink Advanced Heat Sink Advanced Heat Sink Large Storage Unit Thermal Shield System Shield > --- WEAPON ----------- Plasma Cannon Improved Heavy Machine Gun > --- INVENTORY -------- Light Angular Momentum Engine Light Angular Momentum Engine Xenon Bombardment Thruster Xenon Bombardment Thruster Xenon Bombardment Thruster Advanced Sensor Array Improved Trap Extractor Improved Trap Extractor PSU Rigger Improved Heavy Machine Gun Improved Datajack Powered Hammer [Rating: 66] Favorites ----------- Power Light Nuclear Core Engine Improved Deuterium Engine Power Core Light Nuclear Core Propulsion Armored Wheel Treads Light Treads Leg Aluminum Leg Wheel Armored Wheel Flight Unit Xenon Bombardment Thruster Utility Large Storage Unit Device Advanced Heat Sink Storage Large Storage Unit Processor Transport Network Coupler Hackware Relay Coupler [NC] Protection Powered Armor Weapon Advanced Beam Cannon Energy Gun Beamcaster Energy Cannon Advanced Beam Cannon Ballistic Gun Flak Gun Launcher Rocket Launcher Impact Weapon Powered Hammer Special Melee Weapon Improved Datajack Build | -11 -10 -10 -9 -9 -9 -8 -8 -8 -7 -7 -7 -7 -7 -6 -6 ------- Run | Scr Mat Min Mat Min Exi Min Mat Gar Fac Gar Fac Low Low Fac Ext Slots Evolved 8 | . . . 2 . . . 2 . 2 . . . . 2 . Power 1 | . . . . . . . . . 1 . . . . . . Propulsion 2 | . . . . . . . 1 . . . . . . 1 . Utility 5 | . . . 2 . . . 1 . 1 . . . . 1 . Weapon . | . . . . . . . . . . . . . . . . Parts Attached 187 | 7 10 . 23 2 1 11 5 14 28 4 17 12 4 31 18 Power 24 | 1 3 . 4 . 1 1 1 1 4 1 1 . 1 3 2 Engine 14 | 1 1 . 1 . 1 1 1 1 2 . . . 1 2 2 Core 10 | . 2 . 3 . . . . . 2 1 1 . . 1 . Reactor . | . . . . . . . . . . . . . . . . Propulsion 45 | 2 3 . 8 . . . . 6 7 . 5 . 1 7 6 Treads 7 | . . . . . . . . 2 2 . 1 . . 1 1 Leg 19 | . . . 3 . . . . 4 4 . . . . 5 3 Wheel 18 | 2 3 . 5 . . . . . 1 . 4 . 1 1 1 Hover . | . . . . . . . . . . . . . . . . Flight 1 | . . . . . . . . . . . . . . . 1 Utility 63 | 2 2 . 6 . . 4 3 3 10 2 10 4 1 9 7 Device 38 | 1 1 . 4 . . 3 2 . 6 . 5 2 1 7 6 Storage 4 | 1 1 . . . . 1 . . . . 1 . . . . Processor 2 | . . . 1 . . . 1 . . . . . . . . Hackware 4 | . . . . . . . . . 1 . 1 . . 1 1 Protection 15 | . . . 1 . . . . 3 3 2 3 2 . 1 . Artifact . | . . . . . . . . . . . . . . . . Weapon 55 | 2 2 . 5 2 . 6 1 4 7 1 1 8 1 12 3 Energy Gun 11 | . . . . . . 5 1 1 2 . . 1 . 1 . Energy Cannon 17 | . 2 . 5 1 . . . . 1 . . 1 . 6 1 Ballistic Gun 12 | 2 . . . . . . . 2 1 . 1 3 . 2 1 Ballistic Cannon . | . . . . . . . . . . . . . . . . Launcher 11 | . . . . 1 . 1 . 1 2 1 . 3 1 1 . Special Weapon . | . . . . . . . . . . . . . . . . Impact Weapon 1 | . . . . . . . . . . . . . . 1 . Slashing Weapon . | . . . . . . . . . . . . . . . . Piercing Weapon . | . . . . . . . . . . . . . . . . Special Melee Weapon 3 | . . . . . . . . . 1 . . . . 1 1 Unidentified Prototypes 4 | . 1 . . . . . 1 . 1 . . . . 1 . Corrupted Parts 1 | . . . . . . 1 . . . . . . . . . System Corruption 3 | . . . . . . 3 . . . . . . . . . Parts Lost 61 | . . . 4 1 . . 1 4 8 1 1 1 5 18 17 Power 11 | . . . 1 1 . . 1 . . 1 1 . 1 3 2 Propulsion 21 | . . . 2 . . . . 2 5 . . . 2 4 6 Utility 20 | . . . 1 . . . . 1 2 . . . 2 7 7 Weapon 9 | . . . . . . . . 1 1 . . 1 . 4 2 Highest Loss Streak 14 | . . . 1 1 . . 1 2 3 1 1 1 3 14 8 To Critical Strikes . | . . . . . . . . . . . . . . . . Average Slot Usage (%) 94 | . 100 100 98 97 92 100 85 97 96 99 99 99 84 80 72 Engine 6 | . 12 . . . 4 11 8 8 6 7 7 7 13 9 4 Core 4 | . 1 14 10 9 . . . . 7 6 6 7 . . 2 Treads 2 | . . . . . . . . 5 3 15 9 . . . 1 Leg 6 | . . . 5 . . . . 10 16 7 2 . . 11 12 Wheel 13 | . 28 28 16 22 22 22 18 10 . . 10 23 18 8 4 Device 15 | . 14 14 20 22 22 22 18 10 14 15 8 7 8 18 19 Storage 9 | . 14 14 11 11 11 11 9 9 7 7 6 7 7 6 5 Processor 8 | . . . 11 11 11 11 14 18 10 7 7 7 7 4 . Hackware 2 | . . . . . . . . . 3 . 6 7 7 6 6 Protection 4 | . . . . . . . . 7 7 15 14 15 3 . . Energy Gun 4 | . . . . . . 18 18 9 4 1 . 4 7 3 2 Energy Cannon 9 | . 16 28 22 22 22 3 . . . 7 7 . . 6 3 Ballistic Gun 3 | . 11 . . . . . . 8 5 . 4 5 3 . 3 Naked Turns . | . . . . . . . . . . . . . . . . Heaviest Build 68 | 13 25 25 30 29 29 37 37 37 61 68 66 67 57 66 54 Greatest Support 40 | 26 32 32 32 24 24 24 24 35 40 40 40 36 36 40 40 Greatest Overweight (x) 9 | . . . 2 1 1 1 1 2 4 1 3 1 2 9 2 Average Overweight (x) . | . . . . . . . 1 1 1 1 2 1 1 2 . Largest Inventory Capacity 15 | 8 10 10 10 10 10 15 15 15 15 15 15 15 15 15 15 Average Capacity 13 | 7 9 10 10 10 10 11 15 15 15 15 14 15 15 15 14 Most Carried 15 | 7 10 10 10 10 10 14 15 15 15 15 15 15 15 15 15 Average Carried 12 | 5 8 10 9 10 9 11 14 14 14 14 14 14 14 13 13 Final Capacity 15 | 8 10 10 10 10 10 15 15 15 15 15 15 15 15 15 5 Final Carried 15 | 7 10 10 10 10 10 14 14 15 15 14 15 15 15 14 5 Class Distribution -------------------- 56% | Scavenger-Mutant 36% | Mutant 3% | Scavenger-Assassin Dominant Class ---------------- Mutant | -10/Materials Mutant | -10/Mines Scavenger-Mutant | -9/Materials Scavenger-Mutant | -9/Mines Mutant | -9/Exiles Scavenger-Mutant | -8/Mines Scavenger-Mutant | -8/Materials Scavenger-Mutant | -8/Garrison Scavenger-Mutant | -7/Factory Mutant | -7/Garrison Mutant | -7/Factory Scavenger-Mutant | -7/Lower Caves Mutant | -7/Lower Caves Scavenger-Mutant | -6/Factory Scavenger-Mutant | -6/Extension Resources | -11 -10 -10 -9 -9 -9 -8 -8 -8 -7 -7 -7 -7 -7 -6 -6 ----------- Run | Scr Mat Min Mat Min Exi Min Mat Gar Fac Gar Fac Low Low Fac Ext Matter Collected 3167 | 318 198 10 225 42 . 116 45 274 485 8 360 342 91 341 312 Remotely . | . . . . . . . . . . . . . . . . Salvage Created 6194 | 169 490 78 1354 204 . 232 184 454 543 130 478 420 111 712 635 Parts 337 | 8 22 5 92 22 . 12 13 21 29 13 24 20 8 33 15 Haulers Intercepted 5 | . 2 . 3 . . . . . . . . . . . . Recyclers Shooed 2 | . 1 . . . . . . . . . 1 . . . . Parts Field Recycled . | . . . . . . . . . . . . . . . . Retrieved Matter . | . . . . . . . . . . . . . . . . Parts Self-Destructed 20 | . . . . . . . . . . . . 15 5 . . Prevented . | . . . . . . . . . . . . . . . . Kills | -11 -10 -10 -9 -9 -9 -8 -8 -8 -7 -7 -7 -7 -7 -6 -6 ------- Run | Scr Mat Min Mat Min Exi Min Mat Gar Fac Gar Fac Low Low Fac Ext Combat Hostiles Destroyed 154 | . 9 5 25 9 . 11 6 12 14 12 2 19 4 15 11 Melee 1 | . . . . . . . . . . . . . . 1 . Guns 43 | . 2 . . . . 4 6 8 11 . . 2 2 5 3 Cannons 51 | . 6 5 22 5 . . . . 1 . 2 . . 5 5 AOE 50 | . 1 . . 4 . 6 . 4 2 12 . 16 2 2 1 Classes Destroyed 19 | 2 5 1 3 2 . . . 1 1 . 1 . . 2 1 Worker 7 | . . . 2 1 . . . . 1 . 1 . . 2 . Builder 6 | . 1 . 2 . . . . . 1 . 1 . . 1 . Tunneler 4 | 4 . . . . . . . . . . . . . . . Hauler 5 | . 2 . 3 . . . . . . . . . . . . Recycler 6 | 1 1 . 1 . . . . . . . 3 . . . . Mechanic 2 | . . . . . . . . . . . 2 . . . . Operator 1 | . . . . . . . . . . . . . . . 1 Watcher 7 | . 3 . 2 . . . 1 . . . 1 . . . . Swarmer 56 | . 3 3 3 7 . 8 4 . . 12 . 10 3 3 . Grunt 53 | . 6 . 14 1 . 3 2 6 8 . 1 3 . 2 7 Brawler 6 | . . . . 1 . . . 1 . . . 4 . . . Duelist 4 | . . . 1 . . . . 2 . . . . . . 1 Sentry 20 | . . . 7 . . . . 2 3 . . 1 1 3 3 Specialist 2 | . . . . . . . . . . . . . . 2 . Hunter 4 | . . . . . . . . 1 . . 1 . . 2 . Programmer 6 | . . . . . . . . . 3 . . 1 . 2 . Heavy 1 | . . . . . . . . . . . . . . 1 . Zionite 2 | . . . . 1 . 1 . . . . . . . . . Assembled 2 | . . 2 . . . . . . . . . . . . . Best Kill Streak 14 | 5 4 3 6 4 . 4 4 6 4 12 2 14 3 12 8 Combat Bots Only 14 | . 3 3 6 4 . 4 4 6 3 12 1 14 3 10 8 Max Kills in Single Turn 8 | 1 3 2 2 2 . 4 1 2 1 4 1 8 2 2 2 Gunslinging . | . . . . . . . . . . . . . . . . Exploded 8 | . 1 . . 2 . 4 . 2 1 4 . 8 2 2 1 Melee 1 | . . . . . . . . . . . . . . 1 . Uniques/NPCs Destroyed . | . . . . . . . . . . . . . . . . Combat | -11 -10 -10 -9 -9 -9 -8 -8 -8 -7 -7 -7 -7 -7 -6 -6 -------- Run | Scr Mat Min Mat Min Exi Min Mat Gar Fac Gar Fac Low Low Fac Ext Damage Taken 9384 | . 387 36 891 237 . 272 252 782 1337 138 394 351 405 2070 1832 Core 1656 | . 70 . 158 70 . 83 65 96 123 13 25 34 56 349 514 Absorbed by Shields 431 | . . . 12 . . 4 112 103 . . . . . 200 . Regen/Repaired (Parts) 192 | . . . . . . . . . 67 . 125 . . . . Core Remaining (%) 65 | 100 . 72 . . . 22 . 70 . . . . 64 . . Volleys Fired 444 | 8 37 9 72 17 . 15 19 36 67 9 43 14 10 48 40 Largest 2 | 2 2 2 2 2 . 2 2 2 2 1 2 2 2 2 2 Hottest 175 | 40 136 136 136 136 . 136 134 130 140 33 98 140 105 175 155 Shots Fired 744 | 16 74 18 143 32 . 30 38 63 90 9 54 19 20 73 65 Gun 342 | 16 36 . . . . 19 38 59 84 . 8 11 16 27 28 Cannon 367 | . 38 18 143 30 . 10 . . 2 . 43 4 . 42 37 Launcher 35 | . . . . 2 . 1 . 4 4 9 3 4 4 4 . Special . | . . . . . . . . . . . . . . . . Kinetic 178 | 16 36 . . . . . . 25 44 . 8 6 6 15 22 Thermal 528 | . 38 18 143 30 . 29 38 34 39 . 43 9 10 54 43 Explosive 35 | . . . . 2 . 1 . 4 4 9 3 4 4 4 . Electromagnetic 3 | . . . . . . . . . 3 . . . . . . Robot Hit Streak 20 | 5 11 3 12 3 . 7 5 15 15 10 8 8 8 17 20 Robot Miss Streak 17 | 3 3 2 3 5 . 2 5 3 6 1 2 6 4 17 3 Penetration Max . | . . . . . . . . . . . . . . . . Secondary Targets 2 | . . . . . . 1 1 . . . . . . . . Max Gunslinging Chain 1 | . . . . . . 1 1 . . . . . . . . Shots Hit Robots 463 | 9 42 8 87 11 . 19 19 46 66 3 21 16 15 55 46 Core Hits 350 | 6 21 5 35 10 . 12 10 27 68 17 12 59 10 38 20 Critical Kills 5 | . . . 2 . . . . . . . . . . 2 1 Critical Parts Destroyed 3 | . . . . . . . . . . . . . . 1 2 Critical Strikes 16 | . . . 2 . . 1 3 2 . . . 1 . 3 4 Burn 8 | . . . . . . 1 3 2 . . . 1 . . 1 Meltdown 5 | . . . 2 . . . . . . . . . . 2 1 Smash 3 | . . . . . . . . . . . . . . 1 2 Melee Attacks 11 | . . . . . . . . . 3 . . . . 4 4 Impact 7 | . . . . . . . . . . . . . . 4 3 Slashing . | . . . . . . . . . . . . . . . . Piercing . | . . . . . . . . . . . . . . . . Sneak Attacks 3 | . . . . . . . . . 1 . . . . 1 1 Combat Hostiles . | . . . . . . . . . . . . . . . . Follow-up Attacks . | . . . . . . . . . . . . . . . . Damage Inflicted 14304 | 139 1117 209 1842 434 . 669 362 1324 1640 838 596 1864 414 1735 1121 Guns 4501 | 139 303 . . . . 206 362 944 1331 . 37 164 243 282 490 Cannons 4939 | . 413 209 1838 227 . 143 . . 53 . 431 98 . 944 583 Explosions 4610 | . 401 . . 207 . 320 . 380 255 838 128 1602 171 308 . Melee 249 | . . . . . . . . . . . . . . 201 48 Ramming 5 | . . . 4 . . . . . 1 . . . . . . Kinetic 2631 | 139 303 . . . . . . 446 956 . 37 69 97 178 406 Thermal 7364 | . 814 209 1838 227 . 503 362 498 428 . 431 193 146 1048 667 Explosive 4055 | . . . . 207 . 166 . 380 255 838 128 1602 171 308 . Electromagnetic . | . . . . . . . . . . . . . . . . Impact 249 | . . . . . . . . . . . . . . 201 48 Slashing . | . . . . . . . . . . . . . . . . Piercing . | . . . . . . . . . . . . . . . . Highest Corruption 4 | . . . . . . 3 . . 4 4 4 4 4 1 1 Average Corruption 2 | . . . . . . 3 . . 2 4 4 4 4 1 1 Corruption Purged . | . . . . . . . . . . . . . . . . Corruption Blocked . | . . . . . . . . . . . . . . . . Effects 54 | . . . . . . . . . 10 7 13 10 5 3 6 Message Errors 11 | . . . . . . . . . 3 1 4 2 . . 1 Matter Fused 15 | . . . . . . . . . 4 1 2 4 2 . 2 Heat Flow Errors 2 | . . . . . . . . . . . . . 1 . 1 Energy Discharges 8 | . . . . . . . . . 1 4 . 1 1 . 1 Parts Rejected 1 | . . . . . . . . . . . . . . 1 . Data Loss (minor) 11 | . . . . . . . . . 2 1 4 3 1 . . Data Loss (major) 2 | . . . . . . . . . . . . . . 1 1 Misfires 2 | . . . . . . . . . . . 2 . . . . Weapon Failures 2 | . . . . . . . . . . . 1 . . 1 . Overload Shots . | . . . . . . . . . . . . . . . . Overflow Damage 237 | . 1 2 12 13 . . . . . . 19 38 15 89 48 Projectiles 18 | . 1 2 12 . . . . . . . . 3 . . . Explosions 82 | . . . . 13 . . . . . . 19 35 15 . . Melee 137 | . . . . . . . . . . . . . . 89 48 Knockbacks . | . . . . . . . . . . . . . . . . Impact . | . . . . . . . . . . . . . . . . Kinetic . | . . . . . . . . . . . . . . . . Secondary . | . . . . . . . . . . . . . . . . Self-Inflicted Damage 257 | . 51 . . . . 32 . 43 . 27 27 28 49 . . Shots 10 | . 1 . . . . 1 . 2 . 2 1 2 1 . . Rammed . | . . . . . . . . . . . . . . . . Targets Rammed 2 | . . . 1 . . . . . 1 . . . . . . Kicked 2 | . . . 1 . . . . . 1 . . . . . . Crushed . | . . . . . . . . . . . . . . . . Highest Temperature 428 | . 198 50 240 180 . 189 108 11 224 . 50 72 100 428 130 Average Temperature 68 | . 52 24 48 64 . 97 50 6 63 . 24 38 24 153 45 Received Heat Transfer 2420 | . 207 . 406 18 . 72 99 294 369 . 87 18 72 211 567 Effects 5 | . . . . . . . . . . . . . . 5 . Shutdowns 2 | . . . . . . . . . . . . . . 2 . Matter Decay 1 | . . . . . . . . . . . . . . 1 . Short Circuit 1 | . . . . . . . . . . . . . . 1 . Damage (minor) 1 | . . . . . . . . . . . . . . 1 . Siege Activations . | . . . . . . . . . . . . . . . . Robots Corrupted . | . . . . . . . . . . . . . . . . Combat Hostiles . | . . . . . . . . . . . . . . . . Parts Fried 2 | . . . . . . . . . . . . . . 1 1 Impact Corruptions 5 | . . . . . . . . . . . . . . 3 2 Robots Melted 8 | . . . 3 . . 1 . . . . . 1 . 2 1 Combat Hostiles 8 | . . . 3 . . 1 . . . . . 1 . 2 1 Parts Melted 23 | . . . 2 . . . 1 1 . . . 2 1 10 6 Heat Transferred 12812 | . 990 370 3330 407 . 977 925 1036 703 . 592 333 259 1518 1372 Parts Sabotaged . | . . . . . . . . . . . . . . . . Parts Stolen . | . . . . . . . . . . . . . . . . Parts Stripped . | . . . . . . . . . . . . . . . . Power Chain Reactions . | . . . . . . . . . . . . . . . . Missiles Intercepted . | . . . . . . . . . . . . . . . . Alert | -11 -10 -10 -9 -9 -9 -8 -8 -8 -7 -7 -7 -7 -7 -6 -6 ------- Run | Scr Mat Min Mat Min Exi Min Mat Gar Fac Gar Fac Low Low Fac Ext Peak Influence 669 | 25 374 177 490 288 . 200 242 669 406 382 246 . . 361 153 Initial 350 | . 16 107 . 190 . . 37 157 350 109 200 . . 265 102 Average 233 | 10 190 142 305 192 . 103 162 420 279 289 166 . . 268 62 Maximum Alert Level 2 | . 1 . 2 1 . 1 1 2 2 1 1 . . 1 . Low Security (%) 43 | 100 48 100 29 40 . 77 71 11 23 32 49 . . 15 100 Level 1 45 | . 51 . 30 59 . 22 28 46 68 67 50 . . 84 . Level 2 10 | . . . 39 . . . . 41 7 . . . . . . Level 3 . | . . . . . . . . . . . . . . . . Level 4 . | . . . . . . . . . . . . . . . . Level 5 . | . . . . . . . . . . . . . . . . High Security . | . . . . . . . . . . . . . . . . Max Security . | . . . . . . . . . . . . . . . . Squads Dispatched 27 | . 1 . 5 . . . 1 . 9 . . . . 9 2 Investigation 12 | . 1 . 5 . . . . . 4 . . . . 1 1 Extermination 6 | . . . . . . . . . 4 . . . . 2 . Reinforcement 6 | . . . . . . . 1 . 1 . . . . 3 1 Assault . | . . . . . . . . . . . . . . . . Garrison 3 | . . . . . . . . . . . . . . 3 . Intercept . | . . . . . . . . . . . . . . . . Searches Triggered . | . . . . . . . . . . . . . . . . Construction Impeded 1 | . . . . . . . . . . . . . . 1 . Haulers Reinforced 1 | . . . . . . . . . 1 . . . . . . Active Scanning Responses . | . . . . . . . . . . . . . . . . Cargo Convoy Interrupts . | . . . . . . . . . . . . . . . . Stealth | -11 -10 -10 -9 -9 -9 -8 -8 -8 -7 -7 -7 -7 -7 -6 -6 --------- Run | Scr Mat Min Mat Min Exi Min Mat Gar Fac Gar Fac Low Low Fac Ext Distress Signals 5 | . 1 . 1 . . . . . . . . . . 1 2 Communications Jammed 1 | . . . . . . . 1 . . . . . . . . Distress Signals 1 | . . . . . . . 1 . . . . . . . . Times Spotted 206 | . 14 5 34 9 . 11 12 16 23 9 15 19 5 15 19 Peak Tracking Total 13 | . 3 3 6 4 . 4 5 7 3 5 6 13 4 5 5 Tactical Retreats 10 | . 2 . 1 . . . 1 1 2 1 1 . 1 . . Traps | -11 -10 -10 -9 -9 -9 -8 -8 -8 -7 -7 -7 -7 -7 -6 -6 ------- Run | Scr Mat Min Mat Min Exi Min Mat Gar Fac Gar Fac Low Low Fac Ext Traps Triggered 8 | . . . 2 . . . . 4 2 . . . . . . Indirectly . | . . . . . . . . . . . . . . . . Trap Hack Attempts 35 | . . . . . . . . . 32 . . . . 3 . Triggered . | . . . . . . . . . . . . . . . . Disarmed . | . . . . . . . . . . . . . . . . Reprogrammed 16 | . . . . . . . . . 5 . 6 . . 1 4 Reused 2 | . . . . . . . . . 2 . . . . . . Traps Extracted . | . . . . . . . . . . . . . . . . Installed . | . . . . . . . . . . . . . . . . Triggered 2 | . . . . . . . . . 2 . . . . . . Power Sources Rigged 9 | . . . . . . 1 . . 2 . 3 2 . . 1 Exploded 6 | . . . . . . . . . 1 . 1 1 . . 3 Machines | -11 -10 -10 -9 -9 -9 -8 -8 -8 -7 -7 -7 -7 -7 -6 -6 ---------- Run | Scr Mat Min Mat Min Exi Min Mat Gar Fac Gar Fac Low Low Fac Ext Machines Disabled 5 | . 3 . . . . 1 . 1 . . . . . . . Max in Single Turn 2 | . 2 . . . . 1 . 1 . . . . . . . Garrison Relay 1 | . . . . . . . . 1 . . . . . . . Machines Sabotaged . | . . . . . . . . . . . . . . . . Garrisons Compromised . | . . . . . . . . . . . . . . . . Overloaded Fab Kills . | . . . . . . . . . . . . . . . . Hacking | -11 -10 -10 -9 -9 -9 -8 -8 -8 -7 -7 -7 -7 -7 -6 -6 --------- Run | Scr Mat Min Mat Min Exi Min Mat Gar Fac Gar Fac Low Low Fac Ext Machines Accessed 39 | . 5 . 9 . 2 . 2 . 8 . 3 . . 4 6 Terminals 25 | . 3 . 7 . . . 1 . 5 . 2 . . 1 6 Fabricators 2 | . . . . . . . . . 1 . . . . 1 . Repair Stations 3 | . 1 . . . . . . . 1 . 1 . . . . Recycling Units 4 | . 1 . 2 . . . . . . . . . . 1 . Scanalyzers 1 | . . . . . . . . . . . . . . 1 . Garrison Access 2 | . . . . . . . 1 . 1 . . . . . . Total Hacks 120 | . 14 . 26 . 2 . 4 . 19 . 10 . . 16 29 Successful 66 | . 8 . 14 . 2 . 3 . 8 . 7 . . 12 12 Failed 54 | . 6 . 12 . . . 1 . 11 . 3 . . 4 17 Catastrophic 5 | . . . 1 . . . . . 2 . . . . . 2 Database Lockouts . | . . . . . . . . . . . . . . . . Manual 43 | . 4 . 12 . 1 . 2 . 10 . 4 . . . 10 Terminals 87 | . 10 . 24 . . . 2 . 13 . 8 . . 1 29 Fabricators 7 | . . . . . . . . . 2 . . . . 5 . Repair Stations 7 | . 2 . . . . . . . 3 . 2 . . . . Recycling Units 6 | . 2 . 2 . . . . . . . . . . 2 . Scanalyzers 8 | . . . . . . . . . . . . . . 8 . Garrison Access 3 | . . . . . . . 2 . 1 . . . . . . Terminal Hacks 32 | . 4 . 10 . 2 . 1 . 2 . 4 . . 1 8 Record 1 | . . . . . 1 . . . . . . . . . . Part Schematic 2 | . . . 1 . . . . . 1 . . . . . . Robot Analysis 2 | . . . 1 . . . . . . . . . . . 1 Prototype ID Bank 3 | . . . 1 . . . 1 . . . . . . . 1 Open Door 1 | . . . . . . . . . . . . . . 1 . Branch Access Points 1 | . . . . . . . . . . . 1 . . . . Terminal Index 2 | . . . 1 . . . . . . . . . . . 1 Fabricator Index 1 | . . . . . . . . . . . 1 . . . . Recycling Unit Index 1 | . 1 . . . . . . . . . . . . . . Alert Level 2 | . 1 . 1 . . . . . . . . . . . . Unreport Threat 2 | . . . . . . . . . 1 . . . . . 1 Locate Traps 4 | . . . 1 . . . . . . . 1 . . . 2 Reprogram Traps 2 | . . . . . . . . . . . 1 . . . 1 Maintenance Status 1 | . . . 1 . . . . . . . . . . . . Hauler Manifests 1 | . . . 1 . . . . . . . . . . . . Registered Components 1 | . 1 . . . . . . . . . . . . . . Registered Prototypes 2 | . 1 . 1 . . . . . . . . . . . . Zone Layout 2 | . . . 1 . . . . . . . . . . . 1 EX-Prototype ID Bank 1 | . . . . . 1 . . . . . . . . . . Fabricator Hacks 3 | . . . . . . . . . 1 . . . . 2 . Load Schematic 2 | . . . . . . . . . 1 . . . . 1 . Build 1 | . . . . . . . . . . . . . . 1 . Repair Station Hacks 5 | . 1 . . . . . . . 2 . 2 . . . . Scan Component 3 | . 1 . . . . . . . 1 . 1 . . . . Repair 2 | . . . . . . . . . 1 . 1 . . . . Recycling Unit Hacks 2 | . 1 . . . . . . . . . . . . 1 . Retrieve Components 2 | . 1 . . . . . . . . . . . . 1 . Scanalyzer 8 | . . . . . . . . . . . . . . 8 . Insert Component 3 | . . . . . . . . . . . . . . 3 . Analyze 5 | . . . . . . . . . . . . . . 5 . Garrison Access Hacks 2 | . . . . . . . 1 . 1 . . . . . . Unlock Access 2 | . . . . . . . 1 . 1 . . . . . . Unauthorized Hacks 14 | . 2 . 4 . . . 1 . 2 . 1 . . . 4 Terminals 10 | . 1 . 2 . . . 1 . 1 . 1 . . . 4 Assimilate 2 | . . . . . . . . . 1 . . . . . 1 Botnet 6 | . 1 . 1 . . . 1 . . . 1 . . . 2 Operators 2 | . . . 1 . . . . . . . . . . . 1 Fabricators 1 | . . . . . . . . . 1 . . . . . . Recompile 1 | . . . . . . . . . 1 . . . . . . Repair Stations . | . . . . . . . . . . . . . . . . Recycling Units 3 | . 1 . 2 . . . . . . . . . . . . Tunnel 3 | . 1 . 2 . . . . . . . . . . . . Scanalyzers . | . . . . . . . . . . . . . . . . Garrison Access . | . . . . . . . . . . . . . . . . Data Cores Recovered . | . . . . . . . . . . . . . . . . Used . | . . . . . . . . . . . . . . . . Hacking Detections 31 | . 4 . 7 . . . 1 . 8 . 3 . . 2 6 Full Trace Events 6 | . . . 1 . . . . . 3 . . . . 1 1 Feedback Events . | . . . . . . . . . . . . . . . . Feedback Blocked . | . . . . . . . . . . . . . . . . Robot Schematics Acquired . | . . . . . . . . . . . . . . . . Robots Built . | . . . . . . . . . . . . . . . . Authchips . | . . . . . . . . . . . . . . . . Time . | . . . . . . . . . . . . . . . . Total Robot Build Rating . | . . . . . . . . . . . . . . . . Part Schematics Acquired 5 | . . . 1 . . . . . 1 . . . . 3 . Parts Built 2 | . . . . . . . . . . . . . . 2 . Authchips 1 | . . . . . . . . . . . . . . 1 . Time 42 | . . . . . . . . . . . . . . 42 . Total Part Build Rating 8 | . . . . . . . . . . . . . . 8 . Parts Repaired 2 | . . . . . . . . . 1 . 1 . . . . Time 29 | . . . . . . . . . 16 . 13 . . . . Parts Recycled . | . . . . . . . . . . . . . . . . Recycled Matter . | . . . . . . . . . . . . . . . . Retrieved Matter . | . . . . . . . . . . . . . . . . Retrieved Components 12 | . 9 . . . . . . . . . . . . 3 . Parts Scanalyzed 3 | . . . . . . . . . . . . . . 3 . Part Schematics Acquired 3 | . . . . . . . . . . . . . . 3 . Parts Damaged 1 | . . . . . . . . . . . . . . 1 . Bothacking | -11 -10 -10 -9 -9 -9 -8 -8 -8 -7 -7 -7 -7 -7 -6 -6 ------------ Run | Scr Mat Min Mat Min Exi Min Mat Gar Fac Gar Fac Low Low Fac Ext Used RIF Installer 2 | . . . . . . . . 1 . 1 . . . . . Watcher Feeds 1 | . . . . . . . . . . 1 . . . . . Robots Hacked 3 | . . . . . . . . . 2 . . . . . 1 Non-combat 2 | . . . . . . . . . 1 . . . . . 1 Combat 1 | . . . . . . . . . 1 . . . . . . Robot Hacks Applied 3 | . . . . . . . . . 2 . . . . . 1 find_chute 1 | . . . . . . . . . 1 . . . . . . check_alert 1 | . . . . . . . . . . . . . . . 1 find_garrison 1 | . . . . . . . . . 1 . . . . . . Relay Couplers Released 5 | . . . . . . . . 5 . . . . . . . Machine Destruction 5 | . . . . . . . . 5 . . . . . . . Attached 2 | . . . . . . . . . 1 . 1 . . . . Fabnet Peak Effective % . | . . . . . . . . . . . . . . . . Robots Rewired . | . . . . . . . . . . . . . . . . Allies Hacked . | . . . . . . . . . . . . . . . . Hacks Repelled . | . . . . . . . . . . . . . . . . Allies | -11 -10 -10 -9 -9 -9 -8 -8 -8 -7 -7 -7 -7 -7 -6 -6 -------- Run | Scr Mat Min Mat Min Exi Min Mat Gar Fac Gar Fac Low Low Fac Ext Total Allies 4 | . . . . 2 . . . . 1 . . . . . 1 Largest Group 2 | . . . . 2 . . . . 1 . . . . . 1 Highest-Rated Group 49 | . . . . 49 . . . . 26 . . . . . 26 Highest-Rated Ally 31 | . . . . 31 . . . . 26 . . . . . 26 Total Orders . | . . . . . . . . . . . . . . . . Ally Attacks 2 | . . . . 2 . . . . . . . . . . . Total Damage 40 | . . . . 40 . . . . . . . . . . . Kills . | . . . . . . . . . . . . . . . . Allies Corrupted 1 | . . . . 1 . . . . . . . . . . . Allies Melted . | . . . . . . . . . . . . . . . . Intel | -11 -10 -10 -9 -9 -9 -8 -8 -8 -7 -7 -7 -7 -7 -6 -6 ------- Run | Scr Mat Min Mat Min Exi Min Mat Gar Fac Gar Fac Low Low Fac Ext Robot Analysis Total 2 | . . . 1 . . . . . . . . . . . 1 Derelict Logs Recovered 4 | . . 1 . 1 . . . . . . . 1 1 . . Drone Launches . | . . . . . . . . . . . . . . . . Drone Recoveries . | . . . . . . . . . . . . . . . . Exploration | -11 -10 -10 -9 -9 -9 -8 -8 -8 -7 -7 -7 -7 -7 -6 -6 ------------- Run | Scr Mat Min Mat Min Exi Min Mat Gar Fac Gar Fac Low Low Fac Ext Turns Passed 9872 | 88 567 408 1007 734 527 750 285 1091 1315 294 829 362 225 802 588 Spaces Moved 6104 | 53 437 363 617 653 522 606 183 424 478 110 407 292 176 461 322 Core 25 | 1 . . . . . . . . . . . . . 4 20 Treads 400 | . . . . . . . . 108 75 110 107 . . . . Legs 778 | . . . 95 . . . . 153 399 . . . . 90 41 Wheels 4901 | 52 437 363 522 653 522 606 183 163 4 . 300 292 176 367 261 Hover . | . . . . . . . . . . . . . . . . Flight . | . . . . . . . . . . . . . . . . Fastest Speed 50 | 50 90 100 90 90 90 90 105 105 140 240 101 101 101 110 50 Average Speed 124 | 86 95 100 114 101 95 104 105 173 210 240 153 101 106 125 112 Slowest Speed 500 | 90 100 100 260 105 105 105 105 260 400 240 240 101 110 500 260 Overloaded Moves . | . . . . . . . . . . . . . . . . Propulsion Burnouts . | . . . . . . . . . . . . . . . . Robots Hopped . | . . . . . . . . . . . . . . . . Cave-ins Triggered . | . . . . . . . . . . . . . . . . Exploration Rate (%) 47 | 3 70 76 56 100 91 96 17 55 13 33 11 52 28 9 44 Regions Visited 15 Branch Regions 7 Pre-discovered Areas 5 | . 1 1 2 . 1 . . . . . . . . . . Known Exits Taken 4 | . . . . . . . 1 . 1 . 1 1 . . . Unknown Exits Taken 9 | 1 1 1 1 1 1 1 . . . . . . 1 1 . Scrap Searched 7 | . . 1 . 1 . 1 . . . . . 2 2 . . Spaces Dug 4 | . . . 1 . . . . . . . 3 . . . . Terrain Destroyed 218 | . 17 . 1 22 . 19 . 22 10 22 22 44 23 16 . Melee . | . . . . . . . . . . . . . . . . Projectile 19 | . . . 1 . . . . . . . 6 1 . 11 . AOE 199 | . 17 . . 22 . 19 . 22 10 22 16 43 23 5 . Terrain Rammed . | . . . . . . . . . . . . . . . . Walls Destroyed . | . . . . . . . . . . . . . . . . Machines Disabled . | . . . . . . . . . . . . . . . . Actions | -11 -10 -10 -9 -9 -9 -8 -8 -8 -7 -7 -7 -7 -7 -6 -6 --------- Run | Scr Mat Min Mat Min Exi Min Mat Gar Fac Gar Fac Low Low Fac Ext Total 7641 | 75 518 390 779 690 552 689 237 716 692 132 556 335 194 604 482 Wait 633 | . 17 19 42 17 29 44 26 210 54 10 58 4 1 24 78 Move 6089 | 52 436 362 616 652 521 605 182 423 478 108 406 291 175 460 322 Hop . | . . . . . . . . . . . . . . . . Pick Up 107 | 8 6 . 7 1 1 7 2 6 15 . 18 6 3 19 8 Fast Attach 64 | 6 3 . 10 . . 2 2 6 5 1 4 . 1 14 10 Attach 40 | 1 . . 4 . 1 . 2 2 9 1 . 1 2 11 6 Detach 4 | . . . . . . . 1 1 . . . . . . 2 Swap 83 | . 7 . 9 2 . 9 1 6 14 2 13 11 1 6 2 Drop 102 | . 12 . 18 1 . 6 2 8 12 1 11 6 1 15 9 Fire 444 | 8 37 9 72 17 . 15 19 36 67 9 43 14 10 48 40 Melee 11 | . . . . . . . . . 3 . . . . 4 4 Ram . | . . . . . . . . . . . . . . . . Kick 2 | . . . 1 . . . . . 1 . . . . . . Crush . | . . . . . . . . . . . . . . . . Escape Stasis 18 | . . . . . . . . 18 . . . . . . . Rewire . | . . . . . . . . . . . . . . . . Trap 44 | . . . . . . 1 . . 34 . 3 2 . 3 1 Miscellaneous . | . . . . . . . . . . . . . . . . Route ------- -11/Scrapyard -10/Materials (discovered 2 exits: *Mat / [*Min]) -10/Mines -9/Materials (discovered 4 exits: *Mat x2 / [*Min] / [*Sto]) -9/Mines (discovered 3 exits: *Mat x2 / *Exi) -9/Exiles (discovered 2 exits: [*Min x2]) -8/Mines (discovered 2 exits: *Mat x2) -8/Materials -8/Garrison (discovered 2 exits: *Fac x2) -7/Factory (discovered 2 exits: *Low / Gar) -7/Garrison -7/Factory (discovered 2 exits: *Low x2) -7/Lower Caves -7/Lower Caves -6/Factory -6/Extension History --------- Turn | Location | Event 11 | -11/Scrapyard | Discovered new exit (range 15) 89 | -11/Scrapyard | Entered Materials 247 | -10/Materials | Discovered new exit (range 5) 305 | -10/Materials | Build established: Mutant 465 | -10/Materials | Discovered new exit (range 15) 656 | -10/Materials | Entered Mines 890 | -10/Mines | Assembled infested the area 968 | -10/Mines | Discovered new exit (range 15) 1064 | -10/Mines | Entered Materials 1064 | -9/Materials | Evolved 2 slots: Utility x2 1146 | -9/Materials | Discovered new exit (range 14) 1250 | -9/Materials | Discovered new exit (range 12) 1342 | -9/Materials | Discovered new exit (range 11) 1369 | -9/Materials | Build established: Scavenger-Mutant 1922 | -9/Materials | Discovered new exit (range 4) 2071 | -9/Materials | Entered Mines 2111 | -9/Mines | Met a Derelict bent on vengeance 2121 | -9/Mines | Deemed a non-threat by the Exiles lab entrance 2122 | -9/Mines | Discovered new exit (range 5) 2298 | -9/Mines | Discovered new exit (range 3) 2367 | -9/Mines | Discovered new exit (range 9) 2671 | -9/Mines | Core integrity fell below 50% 2805 | -9/Mines | Entered Exiles 2819 | -9/Exiles | Discovered new exit (range 14) 2848 | -9/Exiles | Met 8R-AWN 2862 | -9/Exiles | Met EX-HEX 2897 | -9/Exiles | Met EX-DEC 2919 | -9/Exiles | Visited The Gauntlet 2966 | -9/Exiles | Build established: Mutant 3047 | -9/Exiles | Learned location of Zion (-6) 3073 | -9/Exiles | Met EX-BIN 3084 | -9/Exiles | Aligned with FarCom system 3085 | -9/Exiles | Given EX-Vault access code 3106 | -9/Exiles | Opened EX-Vault 3114 | -9/Exiles | Found PSU Rigger 3138 | -9/Exiles | Warned to stay clear of 0b10 Research branches 3150 | -9/Exiles | Exiles lab attacked by MAIN.C 3234 | -9/Exiles | Discovered new exit (range 14) 3332 | -9/Exiles | Left Exiles lab with PSU Rigger 3332 | -9/Exiles | Entered Mines 3746 | -8/Mines | Build established: Scavenger-Mutant 3849 | -8/Mines | Discovered new exit (range 14) 3908 | -8/Mines | Discovered new exit (range 8) 4082 | -8/Mines | Entered Materials 4082 | -8/Materials | Evolved 2 slots: Propulsion x1, Utility x1 4112 | -8/Materials | Identified exit to Garrison 4367 | -8/Materials | Entered Garrison 4442 | -8/Garrison | Triggered checkpoint 4664 | -8/Garrison | Discovered new exit (range 13) 5193 | -8/Garrison | Discovered new exit (range 12) 5226 | -8/Garrison | Installed Relay Interface Framework 5290 | -8/Garrison | Triggered checkpoint 5331 | -8/Garrison | Garrison Relay disabled 5458 | -8/Garrison | Entered Factory 5458 | -7/Factory | Evolved 2 slots: Power x1, Utility x1 5628 | -7/Factory | Found Powered Armor 5631 | -7/Factory | Found Powered Armor 5634 | -7/Factory | Found Powered Armor 5676 | -7/Factory | Repaired Imp. Ion Engine 6006 | -7/Factory | Build established: Scavenger-Assassin 6132 | -7/Factory | Lost 3 parts (1n1u1w) 6326 | -7/Factory | Build established: Scavenger-Mutant 6632 | -7/Factory | Discovered new exit (range 8) 6746 | -7/Factory | Found Prototype Launcher 6747 | -7/Factory | Identified Rocket Array 6773 | -7/Factory | Identified exit to Garrison 6773 | -7/Factory | Entered Garrison 6852 | -7/Garrison | Triggered checkpoint 6870 | -7/Garrison | Triggered checkpoint 6922 | -7/Garrison | Destroyed 12 combat bots 7007 | -7/Garrison | Discovered new exit (range 15) 7055 | -7/Garrison | Expanded RIF knowledge: Watcher Feeds 7067 | -7/Garrison | Entered Factory 7141 | -7/Factory | Build established: Mutant 7533 | -7/Factory | Repaired Lrg. Storage Unit 7622 | -7/Factory | Identified exit to Lower Caves 7896 | -7/Factory | Entered Lower Caves 8086 | -7/Lower Caves | Attracted the attention of an 0b10 outpost 8114 | -7/Lower Caves | Destroyed 14 combat bots 8117 | -7/Lower Caves | Encountered a Warlord checkpoint 8165 | -7/Lower Caves | Build established: Scavenger-Mutant 8214 | -7/Lower Caves | Identified exit to Lower Caves 8258 | -7/Lower Caves | Entered another Lower Caves area 8260 | -7/Lower Caves | Attracted the attention of an 0b10 checkpoint 8338 | -7/Lower Caves | Discovered new exit (range 7) 8393 | -7/Lower Caves | Lost 3 parts (2n1u) 8429 | -7/Lower Caves | Learned Factory trap positions 8483 | -7/Lower Caves | Entered Factory 8483 | -6/Factory | Evolved 2 slots: Propulsion x1, Utility x1 8484 | -6/Factory | Loaded intel: 83 trap records 8588 | -6/Factory | Fabricated Imp. Trap Extractor (x2) 8784 | -6/Factory | Discovered new exit (range 6) 9020 | -6/Factory | Garrison activated, responded to threat 9124 | -6/Factory | Destroyed 10 combat bots 9134 | -6/Factory | Lost 14 parts (3p3n5u3w) 9285 | -6/Factory | Entered Extension 9542 | -6/Extension | Core integrity fell below 50% 9629 | -6/Extension | Lost 3 parts (1p2n) 9631 | -6/Extension | Destroyed 8 combat bots 9848 | -6/Extension | Spotted B-75 Beast 9855 | -6/Extension | Spotted B-75 Beast 9868 | -6/Extension | Core integrity fell below 20% 9873 | -6/Extension | Destroyed by B-75 Beast with Magnetic Acceleration Cannon Last Messages --------------- 09799_ Acquired Imp. Heat Sink. 09845_ W-25 Informer sends out distress signal. 09855_ Carbon-fiber Leg blasted off. 09855_ Knocked back. 09856_ Machine disabled. 09857_ Acquired Carbon-fiber Leg. 09859_ Imp. Heat Sink destroyed. 09859_ Plasma Cannon destroyed. 09859_ Carbon-fiber Leg destroyed. 09861_ Arm. Huge Wheel destroyed. 09861_ Dropped Lrg. Storage Unit. 09862_ Dropped Lgt. Angular Momentum Engine. 09862_ R-10 Processor collects Lgt. Angular Momentum Engine. 09862_ Dropped Imp. Heavy Machine Gun. 09863_ Adv. Heat Sink destroyed. 09863_ Knocked back. 09865_ U-05 Engineer destroyed. 09865_ Adv. Heat Sink destroyed. 09869_ Carbon-fiber Leg destroyed. 09871_ R-10 Processor knocked back. Map ----- +----------------------------------------------------+ | #??????????????????????????????????????????? | | #??????????????????????????????????????????? | | #??????????????????????????????????????????? | | ##### #??????????????????????????????????????????? | | ????# #??????????????????????????????????????????? | | ????# #??????????????????????????????????????????? | | ????# #??????????????????????????????????????????? | | ????# #??????????????????????????????????????????? | | ????# #????????? ????????????????????????????????? | | ????# #????????? ????????????????????????????????? | | ????# #????????? ????????????????????????????????? | | ????# #????????? ????????????????????????????????? | | ????# #????????# ????????????????????????????????? | | ????# #????????# #???????????????????????????????? | | ????# #????????# #???????????????????????????????? | | ????# #????????# #???????????????????????????????? | | ????# #????????# #???????????????????????????????? | | ????# #????????# #???????????????????????????????? | | ????# #?######?# "???????????????????????????????? | | ??###%### ## ### ###?????????????????????????????? | | ??#""/"! "" ""#?????????????????????????????? | | ??# "!![! "%" #?????????????????????????????? | | ??# !*= ! #?????????????????????????????? | | ??# % =* |% % #?????????????????????????????? | | ??# * ################??????????????? | | u @% ????????? | | % ????????? | | R p ????????? | | R ?????????? | | BB R A ku k k ?????????? | | ### BB BB ####################??????????? | | ??# BB #?????????????????????????????? | | ??# #?????????????????????????????? | | ??# #????????????????????ss???????? | | ??# #?????????????????????????????? | | ??######T#"""#######?????????????????????????????? | | ????????#????????????????????????????????????????? | | ?????????????????????????????????????????????????? | | | | | | | | | | | | | | | | | | | | | | | | | +----------------------------------------------------+ Best States ------------- Heat Dissipation 94 Energy Generation 31 Energy Capacity 465 Matter Stores 300 Matter Capacity 300 Sight Range 16 Robot Scan Range 14 Terrain Scan Density 10 Jamming Range 12 Armor Coverage 625 Resistance: KI 30 Resistance: TH 20 Evasion (%) 55 Targeting Accuracy 8 Recoil Reduction 2 Matter Filtering 30 Energy Filtering 30 Defensive Hacking 10 Relay Coupler Types 1 Relay Coupler Value 32 Authchip Count 1 Item Schematics ----------------- Lrg. Storage Unit | -9/Materials | Hacked Imp. Trap Extractor | -7/Factory | Hacked System Shield | -6/Factory | Scanalyzed Rocket Array | -6/Factory | Scanalyzed Imp. Datajack | -6/Factory | Scanalyzed Robot Schematics ------------------ None Fabricated ------------ Imp. Trap Extractor | x2 | -6/Factory | Authchip Alien Tech Used ----------------- None Achievements -------------- None Challenges ------------ None Game ------ Seed CouplerPulseScrap Manual? 0 Play Time 01:37:16 Cumulative 229.2 hours Start 2022.05.19 @ 09:36:56 End 2022.05.19 @ 11:49:21 Sessions 1 Manual Loads 0 Difficulty Rogue Special Mode None Game No. 159 Rogue 136 Adventurer 6 Explorer 17 Win Type - Total 17 Types 10/0/3/1/0/1/1/1/0 Lore% 92 Gallery% 91 Achievement% 71 Wizard Run 0 Options --------- ASCII 0 Keyboard 0 Movement Numpad Keybinds 0 Fullscreen 1 Font 12/Fuzzy Map View 83x54 Tactical HUD 1 Map Filters NONE Filters NONE Steam 1 RUN: 3a9ec9c8-2c03-496c-9cd9-28c1b5bde2e6